[Event "*** Titled Tuesday Blitz"]
[Site "Chess.com"]
[Date "2020.04.21"]
[Round "4"]
[White "Dyadya81"]
[Black "LizaSolovyova"]
[Result "1/2-1/2"]
[WhiteElo "2651"]
[BlackElo "2494"]
[TimeControl "180+1"]
[EndTime "10:40:31 PDT"]
[Termination "Game drawn by agreement"]

1. e4 {[%clk 0:03:00]} 1... e5 {[%clk 0:02:59.7]} 2. Nf3 {[%clk 0:02:59.5]} 2...
d6 {[%clk 0:03:00.1]} 3. d4 {[%clk 0:02:59.4]} 3... Qe7 {[%clk 0:02:59.7]} 4.
Nc3 {[%clk 0:02:59.3]} 4... c6 {[%clk 0:02:59.3]} 5. Bg5 {[%clk 0:02:54.7]} 5...
Nf6 {[%clk 0:02:59.2]} 6. Qd2 {[%clk 0:02:52.9]} 6... h6 {[%clk 0:02:55.1]} 7.
Bh4 {[%clk 0:02:53.1]} 7... Bg4 {[%clk 0:02:54.9]} 8. O-O-O {[%clk 0:02:51.5]}
8... Nbd7 {[%clk 0:02:55]} 9. Bc4 {[%clk 0:02:49.8]} 9... O-O-O {[%clk
0:02:52.6]} 10. d5 {[%clk 0:02:48.2]} 10... Nb6 {[%clk 0:02:45.3]} 11. Bb3
{[%clk 0:02:44.4]} 11... c5 {[%clk 0:02:44.6]} 12. a4 {[%clk 0:02:30]} 12... g5
{[%clk 0:02:42.8]} 13. Bg3 {[%clk 0:02:26.8]} 13... Nbd7 {[%clk 0:02:37.4]} 14.
Nb5 {[%clk 0:02:23.4]} 14... a6 {[%clk 0:02:33]} 15. Qa5 {[%clk 0:02:23.8]}
15... axb5 {[%clk 0:02:24.7]} 16. axb5 {[%clk 0:02:24.2]} 16... Nb8 {[%clk
0:02:17.4]} 17. b6 {[%clk 0:02:18]} 17... Nxe4 {[%clk 0:02:13.8]} 18. Rhe1
{[%clk 0:02:13.1]} 18... f5 {[%clk 0:02:09.1]} 19. Ba4 {[%clk 0:02:03]} 19...
Bxf3 {[%clk 0:01:59.1]} 20. gxf3 {[%clk 0:02:02.9]} 20... Nxg3 {[%clk 0:01:57]}
21. hxg3 {[%clk 0:02:03.3]} 21... Bg7 {[%clk 0:01:53.2]} 22. Rd3 {[%clk
0:01:59.1]} 22... e4 {[%clk 0:01:50]} 23. fxe4 {[%clk 0:01:53.1]} 23... fxe4
{[%clk 0:01:50.9]} 24. Rde3 {[%clk 0:01:53.4]} 24... Qf6 {[%clk 0:01:46.4]} 25.
c3 {[%clk 0:01:51.5]} 25... Qxf2 {[%clk 0:01:44.9]} 26. Rxe4 {[%clk 0:01:51.9]}
26... Be5 {[%clk 0:01:37.2]} 27. Rxe5 {[%clk 0:01:49.3]} 27... dxe5 {[%clk
0:01:36.5]} 28. Rxe5 {[%clk 0:01:47.4]} 28... Rh7 {[%clk 0:01:30.8]} 29. Kb1
{[%clk 0:01:29.4]} 29... Rhd7 {[%clk 0:01:18.4]} 30. Bxd7+ {[%clk 0:01:26]}
30... Rxd7 {[%clk 0:01:15.5]} 31. Ka2 {[%clk 0:01:03.7]} 31... g4 {[%clk
0:01:03.8]} 32. Qb5 {[%clk 0:00:44]} 32... Na6 {[%clk 0:00:59.2]} 33. Qd3 {[%clk
0:00:23.5]} 33... Qf7 {[%clk 0:00:55.5]} 34. Qe4 {[%clk 0:00:21.1]} 34... Rd8
{[%clk 0:00:52.4]} 35. Ka3 {[%clk 0:00:17.5]} 35... Qd7 {[%clk 0:00:50.8]} 36.
c4 {[%clk 0:00:15]} 36... Nb4 {[%clk 0:00:48.7]} 37. Re7 {[%clk 0:00:15.1]}
37... Nc2+ {[%clk 0:00:45.5]} 38. Kb3 {[%clk 0:00:11.9]} 38... Nd4+ {[%clk
0:00:45.2]} 39. Ka3 {[%clk 0:00:12.3]} 39... Qf5 {[%clk 0:00:42.3]} 40. Rc7+
{[%clk 0:00:11.1]} 40... Kb8 {[%clk 0:00:41.6]} 41. Qe7 {[%clk 0:00:08.1]} 41...
Qd3+ {[%clk 0:00:38.1]} 42. Ka2 {[%clk 0:00:08.6]} 42... Qxc4+ {[%clk
0:00:35.6]} 43. Ka1 {[%clk 0:00:08.1]} 43... Qc1+ {[%clk 0:00:27.7]} 44. Ka2
{[%clk 0:00:08.4]} 44... Qc4+ {[%clk 0:00:27.1]} 45. Ka1 {[%clk 0:00:08]}
1/2-1/2

[Event "*** Titled Tuesday Blitz"]
[Site "Chess.com"]
[Date "2020.04.21"]
[Round "4"]
[White "boasovietica"]
[Black "tgpgoat"]
[Result "1-0"]
[WhiteElo "2452"]
[BlackElo "2159"]
[TimeControl "180+1"]
[EndTime "10:40:31 PDT"]
[Termination "boasovietica won on time"]

1. e4 {[%clk 0:03:00.9]} 1... c5 {[%clk 0:02:57.4]} 2. Nf3 {[%clk 0:02:59.8]}
2... Nc6 {[%clk 0:02:57]} 3. Nc3 {[%clk 0:02:58.3]} 3... e6 {[%clk 0:02:56]} 4.
Bb5 {[%clk 0:02:58]} 4... g6 {[%clk 0:02:53]} 5. O-O {[%clk 0:02:56.9]} 5...
Nge7 {[%clk 0:02:45.9]} 6. d3 {[%clk 0:02:47.3]} 6... Bg7 {[%clk 0:02:37.1]} 7.
Bg5 {[%clk 0:02:46.9]} 7... Qc7 {[%clk 0:02:33.9]} 8. Qd2 {[%clk 0:02:45.7]}
8... O-O {[%clk 0:02:11.1]} 9. Bh6 {[%clk 0:02:37.3]} 9... a6 {[%clk 0:02:09.1]}
10. Ba4 {[%clk 0:02:34.6]} 10... b5 {[%clk 0:02:05.9]} 11. Bb3 {[%clk
0:02:34.6]} 11... d6 {[%clk 0:02:03.8]} 12. Qf4 {[%clk 0:02:31]} 12... Bb7
{[%clk 0:02:02.7]} 13. Qh4 {[%clk 0:02:30.2]} 13... Rfd8 {[%clk 0:01:21.6]} 14.
Ng5 {[%clk 0:02:25.1]} 14... Bf6 {[%clk 0:01:13.5]} 15. f4 {[%clk 0:02:02.7]}
15... Nd4 {[%clk 0:01:12.6]} 16. Rae1 {[%clk 0:01:56.8]} 16... d5 {[%clk
0:00:55.1]} 17. Kh1 {[%clk 0:01:43.9]} 17... c4 {[%clk 0:00:53.8]} 18. Re3
{[%clk 0:01:30.5]} 18... cxb3 {[%clk 0:00:41.9]} 19. axb3 {[%clk 0:01:30]} 19...
Nxc2 {[%clk 0:00:41.2]} 20. Rh3 {[%clk 0:01:29.5]} 20... dxe4 {[%clk 0:00:38.3]}
21. Bg7 {[%clk 0:01:07]} 21... Bxg7 {[%clk 0:00:34.6]} 22. Qxh7+ {[%clk
0:01:06.7]} 22... Kf8 {[%clk 0:00:34.7]} 23. Ncxe4 {[%clk 0:00:58.2]} 23... Ng8
{[%clk 0:00:32.8]} 24. f5 {[%clk 0:00:30.9]} 24... exf5 {[%clk 0:00:27.6]} 25.
Rxf5 {[%clk 0:00:30.6]} 25... gxf5 {[%clk 0:00:27.2]} 26. Qxf5 {[%clk
0:00:30.2]} 26... Qd7 {[%clk 0:00:20.2]} 27. Nh7+ {[%clk 0:00:19.6]} 27... Ke8
{[%clk 0:00:20.3]} 28. Qg5 {[%clk 0:00:16.8]} 28... f5 {[%clk 0:00:19.9]} 29.
Qg6+ {[%clk 0:00:09.4]} 29... Qf7 {[%clk 0:00:19.3]} 30. Nd6+ {[%clk 0:00:08.8]}
30... Rxd6 {[%clk 0:00:18.9]} 31. Qxd6 {[%clk 0:00:09.3]} 31... Rd8 {[%clk
0:00:18.3]} 32. Qc5 {[%clk 0:00:06.3]} 32... Nd4 {[%clk 0:00:17.8]} 33. Re3+
{[%clk 0:00:05.6]} 33... Ne6 {[%clk 0:00:17.9]} 34. Qb6 {[%clk 0:00:04.1]} 34...
Nf6 {[%clk 0:00:16.5]} 35. Ng5 {[%clk 0:00:03.7]} 35... Nd5 {[%clk 0:00:16.1]}
36. Rxe6+ {[%clk 0:00:02.6]} 36... Kf8 {[%clk 0:00:08.7]} 37. Qc5+ {[%clk
0:00:02.8]} 37... Ne7 {[%clk 0:00:04.8]} 38. Nxf7 {[%clk 0:00:02.3]} 38... Re8
{[%clk 0:00:04.5]} 39. Nd6 {[%clk 0:00:01.9]} 39... Bxg2+ {[%clk 0:00:01.6]} 40.
Kxg2 {[%clk 0:00:01.5]} 1-0

[Event "*** Titled Tuesday Blitz"]
[Site "Chess.com"]
[Date "2020.04.21"]
[Round "4"]
[White "JoakimVonAnd"]
[Black "Jungle_Jaguar"]
[Result "1-0"]
[WhiteElo "2508"]
[BlackElo "2649"]
[TimeControl "180+1"]
[EndTime "10:40:32 PDT"]
[Termination "JoakimVonAnd won by checkmate"]

1. d4 {[%clk 0:03:00.9]} 1... Nf6 {[%clk 0:02:59.4]} 2. c4 {[%clk 0:03:00.5]}
2... e6 {[%clk 0:02:59.3]} 3. Nc3 {[%clk 0:03:00.3]} 3... Bb4 {[%clk 0:02:58.6]}
4. e3 {[%clk 0:03:00.4]} 4... O-O {[%clk 0:02:56.5]} 5. Bd3 {[%clk 0:02:59.9]}
5... d5 {[%clk 0:02:56.8]} 6. Nf3 {[%clk 0:02:59.7]} 6... c5 {[%clk 0:02:56.9]}
7. cxd5 {[%clk 0:02:59.2]} 7... exd5 {[%clk 0:02:56.4]} 8. dxc5 {[%clk
0:02:58.7]} 8... Bg4 {[%clk 0:02:52.5]} 9. O-O {[%clk 0:02:55.5]} 9... Nbd7
{[%clk 0:02:51.9]} 10. h3 {[%clk 0:02:47.7]} 10... Bh5 {[%clk 0:02:50.7]} 11.
Be2 {[%clk 0:02:44.9]} 11... Nxc5 {[%clk 0:02:47.3]} 12. Bd2 {[%clk 0:02:41.5]}
12... Rc8 {[%clk 0:02:33]} 13. a3 {[%clk 0:02:40.8]} 13... Bxc3 {[%clk
0:02:32.1]} 14. Bxc3 {[%clk 0:02:41.7]} 14... Nce4 {[%clk 0:02:31.6]} 15. Bd4
{[%clk 0:02:38.2]} 15... a6 {[%clk 0:02:31.1]} 16. Rc1 {[%clk 0:02:37.8]} 16...
Qd6 {[%clk 0:02:12.3]} 17. Qd3 {[%clk 0:02:14.1]} 17... Bg6 {[%clk 0:02:03.7]}
18. Qb3 {[%clk 0:02:08.4]} 18... b5 {[%clk 0:01:59.5]} 19. a4 {[%clk 0:02:04.8]}
19... b4 {[%clk 0:01:24.8]} 20. Rfd1 {[%clk 0:02:04.2]} 20... a5 {[%clk
0:01:21.2]} 21. Ne5 {[%clk 0:01:55.9]} 21... Bf5 {[%clk 0:01:13.6]} 22. Bb5
{[%clk 0:01:50.7]} 22... Nc5 {[%clk 0:01:07.5]} 23. Qa2 {[%clk 0:01:41.2]} 23...
Ne6 {[%clk 0:01:04.8]} 24. Nf3 {[%clk 0:01:30.1]} 24... Nxd4 {[%clk 0:01:02.8]}
25. Nxd4 {[%clk 0:01:31]} 25... Bg6 {[%clk 0:01:03.4]} 26. Nc6 {[%clk
0:01:28.3]} 26... Kh8 {[%clk 0:01:00.5]} 27. Nxa5 {[%clk 0:01:25.9]} 27... Bc2
{[%clk 0:00:55.7]} 28. Re1 {[%clk 0:01:20.5]} 28... Ne4 {[%clk 0:00:47.3]} 29.
b3 {[%clk 0:01:14.5]} 29... Qb6 {[%clk 0:00:24.3]} 30. Nc6 {[%clk 0:01:11.4]}
30... Bd3 {[%clk 0:00:22.4]} 31. Bxd3 {[%clk 0:01:04.2]} 31... Rxc6 {[%clk
0:00:22.5]} 32. Rxc6 {[%clk 0:00:59.5]} 32... Qxc6 {[%clk 0:00:23.4]} 33. Qc2
{[%clk 0:00:58]} 33... Nc3 {[%clk 0:00:21.4]} 34. a5 {[%clk 0:00:54.4]} 34...
Ra8 {[%clk 0:00:20.4]} 35. a6 {[%clk 0:00:53.8]} 35... Ra7 {[%clk 0:00:19.8]}
36. Ra1 {[%clk 0:00:53.3]} 36... g6 {[%clk 0:00:19]} 37. g3 {[%clk 0:00:52.9]}
37... Kg7 {[%clk 0:00:19.3]} 38. Bf1 {[%clk 0:00:52.9]} 38... Qc5 {[%clk
0:00:19]} 39. Qd2 {[%clk 0:00:50.2]} 39... Ne4 {[%clk 0:00:18.1]} 40. Qd4+
{[%clk 0:00:49.8]} 40... Qxd4 {[%clk 0:00:18.4]} 41. exd4 {[%clk 0:00:50.7]}
41... Nc3 {[%clk 0:00:19.3]} 42. Ra5 {[%clk 0:00:48.6]} 42... Kf6 {[%clk
0:00:18.8]} 43. Kg2 {[%clk 0:00:48.4]} 43... Ne4 {[%clk 0:00:18.1]} 44. Rxd5
{[%clk 0:00:44.1]} 44... Nd2 {[%clk 0:00:18.6]} 45. Rd6+ {[%clk 0:00:37.5]}
45... Ke7 {[%clk 0:00:18.2]} 46. Rb6 {[%clk 0:00:37.6]} 46... Nxb3 {[%clk
0:00:17.3]} 47. Rb7+ {[%clk 0:00:37.8]} 47... Rxb7 {[%clk 0:00:15.8]} 48. axb7
{[%clk 0:00:38.7]} 48... Nxd4 {[%clk 0:00:15.2]} 49. b8=Q {[%clk 0:00:38.6]}
49... b3 {[%clk 0:00:15.8]} 50. Qb4+ {[%clk 0:00:38.5]} 50... Ke6 {[%clk
0:00:14.2]} 51. Qxd4 {[%clk 0:00:38.9]} 51... b2 {[%clk 0:00:14.8]} 52. Qxb2
{[%clk 0:00:38.8]} 52... h5 {[%clk 0:00:15]} 53. Bc4+ {[%clk 0:00:39.2]} 53...
Kf5 {[%clk 0:00:14.9]} 54. f4 {[%clk 0:00:37.7]} 54... h4 {[%clk 0:00:14]} 55.
Qe5# {[%clk 0:00:37.4]} 1-0

[Event "*** Titled Tuesday Blitz"]
[Site "Chess.com"]
[Date "2020.04.21"]
[Round "4"]
[White "Frogo47"]
[Black "LikeWater"]
[Result "0-1"]
[WhiteElo "2489"]
[BlackElo "2664"]
[TimeControl "180+1"]
[EndTime "10:40:32 PDT"]
[Termination "LikeWater won on time"]

1. e4 {[%clk 0:03:00.9]} 1... c5 {[%clk 0:02:58.8]} 2. Nf3 {[%clk 0:03:00.8]}
2... e6 {[%clk 0:02:59.3]} 3. d4 {[%clk 0:03:00.3]} 3... cxd4 {[%clk 0:03:00.2]}
4. Nxd4 {[%clk 0:03:00.8]} 4... Nc6 {[%clk 0:03:00.4]} 5. Nc3 {[%clk 0:03:00.5]}
5... Qc7 {[%clk 0:03:00.6]} 6. Be3 {[%clk 0:02:58.8]} 6... Nf6 {[%clk
0:03:00.6]} 7. Qf3 {[%clk 0:02:58.3]} 7... Be7 {[%clk 0:03:00.5]} 8. O-O-O
{[%clk 0:02:57.1]} 8... O-O {[%clk 0:03:01]} 9. Qg3 {[%clk 0:02:57.3]} 9... Qxg3
{[%clk 0:03:00.9]} 10. hxg3 {[%clk 0:02:57.5]} 10... Ng4 {[%clk 0:03:01.5]} 11.
Nxc6 {[%clk 0:02:44.6]} 11... bxc6 {[%clk 0:03:01.8]} 12. Re1 {[%clk 0:02:28.1]}
12... e5 {[%clk 0:02:55.7]} 13. Nd1 {[%clk 0:02:13.3]} 13... Nxe3 {[%clk
0:02:55.5]} 14. Nxe3 {[%clk 0:02:12.6]} 14... d6 {[%clk 0:02:55.4]} 15. Bc4
{[%clk 0:02:10.6]} 15... g6 {[%clk 0:02:48.8]} 16. f4 {[%clk 0:02:05.7]} 16...
Bf6 {[%clk 0:02:48.2]} 17. f5 {[%clk 0:01:59.9]} 17... Bg5 {[%clk 0:02:35.4]}
18. Kb1 {[%clk 0:01:58.4]} 18... Bxe3 {[%clk 0:02:31.2]} 19. Rxe3 {[%clk
0:01:39.9]} 19... gxf5 {[%clk 0:02:31]} 20. Rd1 {[%clk 0:01:40]} 20... Rd8
{[%clk 0:02:03]} 21. Red3 {[%clk 0:01:29.9]} 21... fxe4 {[%clk 0:01:03.5]} 22.
Rxd6 {[%clk 0:01:29.7]} 22... Rxd6 {[%clk 0:01:04.4]} 23. Rxd6 {[%clk
0:01:30.2]} 23... Bg4 {[%clk 0:00:55.2]} 24. Kc1 {[%clk 0:00:57.5]} 24... Kg7
{[%clk 0:00:25.6]} 25. Kd2 {[%clk 0:00:52.6]} 25... Rb8 {[%clk 0:00:22.8]} 26.
b3 {[%clk 0:00:49.7]} 26... Rb7 {[%clk 0:00:21.2]} 27. Ke3 {[%clk 0:00:48.7]}
27... f5 {[%clk 0:00:20.5]} 28. Rxc6 {[%clk 0:00:24.5]} 28... Rd7 {[%clk
0:00:20.4]} 29. Ra6 {[%clk 0:00:17.6]} 29... h5 {[%clk 0:00:15.2]} 30. a4 {[%clk
0:00:16.7]} 30... Rd1 {[%clk 0:00:10.5]} 31. Rxa7+ {[%clk 0:00:13.3]} 31... Kg6
{[%clk 0:00:10.7]} 32. Ra6+ {[%clk 0:00:13.2]} 32... Kg5 {[%clk 0:00:09.8]} 33.
Bf7 {[%clk 0:00:12.2]} 33... Re1+ {[%clk 0:00:03.7]} 34. Kd2 {[%clk 0:00:09.8]}
34... Re2+ {[%clk 0:00:04.1]} 35. Kc3 {[%clk 0:00:10.1]} 35... f4 {[%clk
0:00:03.8]} 36. gxf4+ {[%clk 0:00:07.3]} 36... exf4 {[%clk 0:00:04.4]} 37. a5
{[%clk 0:00:03.3]} 37... Rxg2 {[%clk 0:00:03.8]} 38. Rg6+ {[%clk 0:00:04.2]}
38... Kf5 {[%clk 0:00:03.7]} 39. a6 {[%clk 0:00:04.3]} 39... Rg1 {[%clk
0:00:02.8]} 40. Kb2 {[%clk 0:00:04.3]} 40... Rd1 {[%clk 0:00:02.9]} 41. Rg8
{[%clk 0:00:01.3]} 41... Rd7 {[%clk 0:00:02.4]} 0-1

[Event "*** Titled Tuesday Blitz"]
[Site "Chess.com"]
[Date "2020.04.21"]
[Round "4"]
[White "IsikCan"]
[Black "FrankieJay"]
[Result "1-0"]
[WhiteElo "2637"]
[BlackElo "2358"]
[TimeControl "180+1"]
[EndTime "10:40:32 PDT"]
[Termination "IsikCan won on time"]

1. e4 {[%clk 0:03:00.9]} 1... c5 {[%clk 0:02:59.6]} 2. Nf3 {[%clk 0:03:00.5]}
2... Nc6 {[%clk 0:02:59.6]} 3. d4 {[%clk 0:03:00.1]} 3... cxd4 {[%clk
0:02:59.8]} 4. Nxd4 {[%clk 0:03:01]} 4... Nf6 {[%clk 0:03:00.3]} 5. Nc3 {[%clk
0:03:00.6]} 5... e5 {[%clk 0:03:00.7]} 6. Ndb5 {[%clk 0:03:00.5]} 6... d6 {[%clk
0:03:01.1]} 7. Bg5 {[%clk 0:03:00.8]} 7... a6 {[%clk 0:03:01.3]} 8. Na3 {[%clk
0:02:59.7]} 8... b5 {[%clk 0:03:02.2]} 9. Bxf6 {[%clk 0:02:59.4]} 9... gxf6
{[%clk 0:03:02.4]} 10. Nd5 {[%clk 0:02:59.6]} 10... Bg7 {[%clk 0:03:02.6]} 11.
Bd3 {[%clk 0:02:57.5]} 11... Ne7 {[%clk 0:03:01.8]} 12. Nxe7 {[%clk 0:02:54.9]}
12... Qxe7 {[%clk 0:03:02.7]} 13. c4 {[%clk 0:02:55.6]} 13... f5 {[%clk
0:03:02.9]} 14. O-O {[%clk 0:02:54]} 14... O-O {[%clk 0:03:02.8]} 15. Qh5 {[%clk
0:02:36]} 15... Rb8 {[%clk 0:02:55.8]} 16. exf5 {[%clk 0:02:11.7]} 16... e4
{[%clk 0:02:51]} 17. Rae1 {[%clk 0:02:11.1]} 17... Bb7 {[%clk 0:02:37.2]} 18. f3
{[%clk 0:01:44]} 18... d5 {[%clk 0:02:20.8]} 19. cxd5 {[%clk 0:01:44.9]} 19...
Qc5+ {[%clk 0:02:18.2]} 20. Kh1 {[%clk 0:01:40.3]} 20... exd3 {[%clk 0:02:18.6]}
21. Qh4 {[%clk 0:01:24.3]} 21... d2 {[%clk 0:01:32.3]} 22. Rd1 {[%clk
0:01:22.4]} 22... Bxb2 {[%clk 0:01:18.7]} 23. Rxd2 {[%clk 0:01:15.1]} 23... Qxa3
{[%clk 0:01:07.7]} 24. Rb1 {[%clk 0:00:44.7]} 24... Rbc8 {[%clk 0:00:36.9]} 25.
Qg5+ {[%clk 0:00:32.9]} 25... Kh8 {[%clk 0:00:37.2]} 26. Rdxb2 {[%clk
0:00:32.3]} 26... f6 {[%clk 0:00:32.3]} 27. Qh6 {[%clk 0:00:26.1]} 27... Bxd5
{[%clk 0:00:29]} 28. h4 {[%clk 0:00:17.6]} 28... Qe7 {[%clk 0:00:28.9]} 29. Rd2
{[%clk 0:00:16.9]} 29... Rcd8 {[%clk 0:00:25.8]} 30. Rbd1 {[%clk 0:00:16.9]}
30... Bc4 {[%clk 0:00:23.2]} 31. a3 {[%clk 0:00:15.9]} 31... Rxd2 {[%clk
0:00:22.9]} 32. Rxd2 {[%clk 0:00:16.8]} 32... Qe1+ {[%clk 0:00:18.2]} 33. Kh2
{[%clk 0:00:16.3]} 33... Qe5+ {[%clk 0:00:18.7]} 34. f4 {[%clk 0:00:16.6]} 34...
Qe7 {[%clk 0:00:15.5]} 35. Rd7 {[%clk 0:00:16.8]} 35... Qxd7 {[%clk 0:00:13]}
36. Qxf8+ {[%clk 0:00:17.3]} 36... Bg8 {[%clk 0:00:13.9]} 37. Qxf6+ {[%clk
0:00:18.2]} 37... Qg7 {[%clk 0:00:14.5]} 38. Qxa6 {[%clk 0:00:18.4]} 38... h5
{[%clk 0:00:10.2]} 39. Qxb5 {[%clk 0:00:12.1]} 39... Qg4 {[%clk 0:00:10.3]} 40.
Qe5+ {[%clk 0:00:12.1]} 40... Kh7 {[%clk 0:00:09.3]} 41. Qe7+ {[%clk 0:00:12.7]}
41... Kh8 {[%clk 0:00:08.8]} 42. Qg5 {[%clk 0:00:13.3]} 42... Qe2 {[%clk
0:00:03.1]} 43. f6 {[%clk 0:00:12]} 1-0

[Event "*** Titled Tuesday Blitz"]
[Site "Chess.com"]
[Date "2020.04.21"]
[Round "4"]
[White "ama18"]
[Black "Ladislav1969"]
[Result "1-0"]
[WhiteElo "2472"]
[BlackElo "2282"]
[TimeControl "180+1"]
[EndTime "10:40:32 PDT"]
[Termination "ama18 won on time"]

1. e4 {[%clk 0:03:00.9]} 1... c5 {[%clk 0:03:00]} 2. Nf3 {[%clk 0:03:00.8]} 2...
e6 {[%clk 0:03:00.1]} 3. d4 {[%clk 0:03:01.4]} 3... cxd4 {[%clk 0:03:00.2]} 4.
Nxd4 {[%clk 0:03:02.3]} 4... Nf6 {[%clk 0:02:59.8]} 5. Nc3 {[%clk 0:03:02.3]}
5... Nc6 {[%clk 0:02:59.7]} 6. Ndb5 {[%clk 0:03:02.1]} 6... Bb4 {[%clk
0:02:57.7]} 7. a3 {[%clk 0:03:02]} 7... Bxc3+ {[%clk 0:02:57.6]} 8. Nxc3 {[%clk
0:03:02.9]} 8... d5 {[%clk 0:02:57.5]} 9. exd5 {[%clk 0:03:03.8]} 9... exd5
{[%clk 0:02:57.3]} 10. Bd3 {[%clk 0:03:04.3]} 10... d4 {[%clk 0:02:57]} 11. Ne2
{[%clk 0:03:04]} 11... h6 {[%clk 0:02:44.1]} 12. O-O {[%clk 0:03:02.4]} 12...
O-O {[%clk 0:02:42.8]} 13. b4 {[%clk 0:02:57.3]} 13... Qd5 {[%clk 0:02:10.7]}
14. b5 {[%clk 0:02:37.4]} 14... Ne5 {[%clk 0:02:06.7]} 15. Nxd4 {[%clk
0:02:15.5]} 15... Nxd3 {[%clk 0:02:05.1]} 16. Qxd3 {[%clk 0:02:14.9]} 16... Rd8
{[%clk 0:02:00.7]} 17. Bb2 {[%clk 0:02:11.6]} 17... Bd7 {[%clk 0:01:28.7]} 18.
c4 {[%clk 0:02:09.4]} 18... Qh5 {[%clk 0:01:25.2]} 19. h3 {[%clk 0:02:04.7]}
19... Rac8 {[%clk 0:01:21.3]} 20. Rac1 {[%clk 0:02:03]} 20... Rc5 {[%clk
0:01:10.2]} 21. Rfd1 {[%clk 0:01:43.6]} 21... Be6 {[%clk 0:01:03.5]} 22. Re1
{[%clk 0:00:27.9]} 22... Rg5 {[%clk 0:00:52.6]} 23. Kf1 {[%clk 0:00:16.3]} 23...
Rc5 {[%clk 0:00:30.1]} 24. Qb3 {[%clk 0:00:14.4]} 24... Bf5 {[%clk 0:00:13.1]}
25. Nxf5 {[%clk 0:00:13]} 25... Qxf5 {[%clk 0:00:12.7]} 26. Bxf6 {[%clk
0:00:12.6]} 26... Qxf6 {[%clk 0:00:11.6]} 27. Qe3 {[%clk 0:00:12.7]} 27... Rdc8
{[%clk 0:00:10.2]} 28. Qe4 {[%clk 0:00:12.3]} 28... Qb2 {[%clk 0:00:04.7]} 29.
Kg1 {[%clk 0:00:09.3]} 29... Qxa3 {[%clk 0:00:04.5]} 30. Qxb7 {[%clk 0:00:09.3]}
30... Qb4 {[%clk 0:00:04.2]} 31. Qxa7 {[%clk 0:00:08.5]} 31... Rxc4 {[%clk
0:00:03.9]} 32. Rcd1 {[%clk 0:00:07.3]} 32... Rc2 {[%clk 0:00:03.1]} 33. Rf1
{[%clk 0:00:07.2]} 33... Qf4 {[%clk 0:00:03]} 34. b6 {[%clk 0:00:07]} 34... Rb8
{[%clk 0:00:02.3]} 35. b7 {[%clk 0:00:07]} 35... Rb2 {[%clk 0:00:02.5]} 36. Qa6
{[%clk 0:00:04.8]} 36... R2xb7 {[%clk 0:00:02.3]} 37. Qc6 {[%clk 0:00:05.4]}
37... Kh8 {[%clk 0:00:02.6]} 38. Qd5 {[%clk 0:00:05.6]} 38... Kg8 {[%clk
0:00:02.9]} 39. Qc6 {[%clk 0:00:05.7]} 39... Kh8 {[%clk 0:00:03.3]} 40. Rde1
{[%clk 0:00:06.3]} 40... Kg8 {[%clk 0:00:02.4]} 41. Re8+ {[%clk 0:00:06.7]} 1-0

[Event "*** Titled Tuesday Blitz"]
[Site "Chess.com"]
[Date "2020.04.21"]
[Round "4"]
[White "HomayoonTofighi"]
[Black "bancsoo"]
[Result "1-0"]
[WhiteElo "2920"]
[BlackElo "2741"]
[TimeControl "180+1"]
[EndTime "10:40:33 PDT"]
[Termination "HomayoonTofighi won on time"]

1. e4 {[%clk 0:03:00.7]} 1... e5 {[%clk 0:02:58.5]} 2. Nf3 {[%clk 0:03:01]} 2...
Nf6 {[%clk 0:02:58.5]} 3. Nxe5 {[%clk 0:02:59.3]} 3... d6 {[%clk 0:02:58.7]} 4.
Nxf7 {[%clk 0:02:59.9]} 4... Kxf7 {[%clk 0:02:58]} 5. d4 {[%clk 0:03:00.6]} 5...
Be6 {[%clk 0:02:45.6]} 6. Nc3 {[%clk 0:02:58.6]} 6... Be7 {[%clk 0:02:41.2]} 7.
Bd3 {[%clk 0:02:45]} 7... Rf8 {[%clk 0:02:19.8]} 8. O-O {[%clk 0:02:35.8]} 8...
Kg8 {[%clk 0:02:18.5]} 9. f4 {[%clk 0:02:34.8]} 9... c5 {[%clk 0:01:55.2]} 10.
d5 {[%clk 0:02:32.5]} 10... Bg4 {[%clk 0:01:54.8]} 11. Qe1 {[%clk 0:02:30.3]}
11... Re8 {[%clk 0:01:18.5]} 12. e5 {[%clk 0:02:22.8]} 12... dxe5 {[%clk
0:01:16.6]} 13. fxe5 {[%clk 0:02:23.7]} 13... Bd6 {[%clk 0:01:16.7]} 14. e6
{[%clk 0:02:08.9]} 14... Qc7 {[%clk 0:00:36.6]} 15. Qh4 {[%clk 0:02:03.2]} 15...
c4 {[%clk 0:00:37]} 16. Rxf6 {[%clk 0:01:52]} 16... gxf6 {[%clk 0:00:16]} 17.
Qxg4+ {[%clk 0:01:51.9]} 17... Kh8 {[%clk 0:00:16.7]} 18. Qh5 {[%clk 0:01:24.2]}
18... Rg8 {[%clk 0:00:15.7]} 19. Bf5 {[%clk 0:01:12.8]} 19... Na6 {[%clk
0:00:15.7]} 20. Be3 {[%clk 0:01:03.1]} 20... Nc5 {[%clk 0:00:15.1]} 21. Nb5
{[%clk 0:00:59.9]} 21... Qg7 {[%clk 0:00:13.6]} 22. g4 {[%clk 0:00:53.7]} 22...
Bf8 {[%clk 0:00:10]} 23. d6 {[%clk 0:00:48.4]} 23... Ne4 {[%clk 0:00:10]} 24. e7
{[%clk 0:00:37]} 24... Bxe7 {[%clk 0:00:08.8]} 25. dxe7 {[%clk 0:00:37.9]} 25...
Qxe7 {[%clk 0:00:09.6]} 26. Re1 {[%clk 0:00:36.8]} 26... Ng5 {[%clk 0:00:07.8]}
27. Nd4 {[%clk 0:00:25.5]} 27... Rae8 {[%clk 0:00:07.6]} 28. h4 {[%clk
0:00:17.2]} 28... Qb4 {[%clk 0:00:07.5]} 29. c3 {[%clk 0:00:17.2]} 29... Nh3+
{[%clk 0:00:04]} 30. Kg2 {[%clk 0:00:15]} 30... Qxb2+ {[%clk 0:00:04]} 31. Kxh3
{[%clk 0:00:14.5]} 31... Re7 {[%clk 0:00:04.6]} 32. Bd2 {[%clk 0:00:14.2]} 32...
Qxd2 {[%clk 0:00:04.7]} 33. Rxe7 {[%clk 0:00:14.5]} 33... Qxc3+ {[%clk
0:00:05.2]} 34. Kg2 {[%clk 0:00:15.1]} 34... Qd2+ {[%clk 0:00:05]} 35. Kf3
{[%clk 0:00:15.3]} 35... Qd1+ {[%clk 0:00:04.2]} 36. Ne2 {[%clk 0:00:15.8]}
36... Qf1+ {[%clk 0:00:02.9]} 37. Ke3 {[%clk 0:00:16.3]} 37... Qh3+ {[%clk
0:00:02.7]} 38. Kf2 {[%clk 0:00:13.9]} 38... Qh2+ {[%clk 0:00:02.9]} 39. Kf1
{[%clk 0:00:14.2]} 39... Qh1+ {[%clk 0:00:02.7]} 40. Ng1 {[%clk 0:00:14.3]} 1-0